[Event "GER-ch Youth-U16 2022"]
[Site "Willingen"]
[Date "2022.06.10"]
[Round "8.9"]
[White "Kort, Felix"]
[Black "Chassard, Cedric"]
[Result "1/2-1/2"]
[ECO "E32"]
[WhiteElo "1894"]
[BlackElo "2051"]
[Annotator "TA"]
[PlyCount "83"]
[EventDate "2022.06.05"]
[EventType "swiss"]
[EventRounds "9"]
[EventCountry "GER"]
[SourceTitle "playchess.com"]
[Source "ChessBase"]
[SourceQuality "1"]
[TimeControl "40/4500+30:900+30"]

{[%evp 18,83,7,7,8,0,18,-7,70,-39,0,42,37,21,87,20,0,-105,-100,-109,-84,-115,-114,-123,-119,-176,143,20,20,31,37,-45,-40,-54,58,-70,-70,-295,-327,-321,-308,-310,-259,-256,-31,-37,210,223,281,213,210,212,254,94,471,0,0,0,0,0,0,0,0,0,0,0,0,0]} 1. d4 {[%emt 0:00:00]} Nf6 {[%emt 0:00:00]} 2. c4 {[%emt 0:00:00]} e6 {[%emt 0:00:00]} 3. Nc3 {[%emt 0:00:00]} Bb4 {[%emt 0:00:00]} 4. Qc2 {[%emt 0:00:00]} O-O {[%emt 0:00:00]} 5. e4 {[%emt 0:00:00][%cal Be2e4,Be4e5][%mdl 32]} d5 {[%emt 0:00:00]} 6. e5 {[%emt 0:00:00]} Ne4 {[%emt 0:00:00]} 7. a3 {[%emt 0:00:00]} Bxc3+ {[%emt 0:00:00]} 8. bxc3 {[%emt 0:00:00]} c5 {[%emt 0:00:00]} 9. Bd3 {[%emt 0:00:00]} cxd4 {[%emt 0:00:00]} 10. cxd4 {[%emt 0:00:00]} Qa5+ {[%emt 0:01:09] E32: Nimzo-Indian: Classical (4 Qc2): 4...0-0.} 11. Kf1 {[%emt 0:00:00]} Bd7 {[%emt 0:03:12] [#]} (11... Nc6 $5 {[%cal Rc6d4]}) 12. f3 $146 {[%emt 0:10:21]} (12. Bxe4 dxe4 13. Ne2 (13. Qxe4 Qc3 $17) 13... Qa4 14. Qxa4 Bxa4 $15) ({Predecessor:} 12. Ne2 f5 13. exf6 Nxf6 14. Bd2 Qd8 15. Bg5 h6 16. Bh4 Nc6 17. cxd5 exd5 18. f3 {1-0 (35) Morozevich,A (2770)-Pelletier,Y (2599) Biel 2012}) 12... f5 {[%emt 0:02:42]} (12... Ba4 $11 13. Qe2 (13. Qb1 Nc6 $11) 13... f5) 13. Rb1 {[%emt 0:08:45]} (13. Ne2 $1 $14) 13... Ba4 {[%emt 0:05:04]} (13... dxc4 $15 14. Bxc4 (14. Bxe4 fxe4 15. Qxe4 Bc6 $15) 14... Rc8) 14. Qb2 $14 {[%emt 0:08:35]} Nc6 {[%emt 0:12:16] Hoping for ...dxc4.} 15. Ne2 {[%emt 0:01:32]} Rf7 {[%emt 0:08:06]} 16. Be3 {[%emt 0:21:21]} ({Better is} 16. cxd5 $16 Qxd5 17. Nf4 Qxd4 18. Qxd4 (18. fxe4 fxe4 19. Qxd4 Nxd4 $16) 18... Nxd4 19. fxe4 fxe4 20. Bxe4) 16... Qa6 $11 {[%emt 0:09:04]} 17. Bc2 {[%emt 0:16:58] [#]} (17. Qc1 $11 {keeps the balance.} Na5 18. Rb4) 17... Na5 $1 $17 {[%emt 0:30:37]} 18. Bxa4 {[%emt 0:04:47]} Nxc4 {[%emt 0:00:26][%mdl 64] Discovered Attack, Double Attack. Pair of Knights!} 19. Bb5 {[%emt 0:08:37]} Nxe3+ {[%emt 0:00:36]} 20. Kg1 {[%emt 0:00:01]} Qa5 {[%emt 0:02:12][%cal Oa8c8]} 21. fxe4 {[%emt 0:00:41]} (21. Qb4 $17 Qxb4 22. axb4) 21... a6 $2 {[%emt 0:01:25]} (21... fxe4 $19 {aiming for ...a6.} 22. h4 a6) 22. exd5 {[%emt 0:03:31]} (22. Qc1 $16) 22... axb5 $11 {[%emt 0:01:50]} 23. dxe6 {[%emt 0:00:01]} Rc7 {[%emt 0:01:00] ...Rc2 is the strong threat.} 24. Qb3 {[%emt 0:00:54]} (24. Qxb5 $2 Rc1+ $3 {[%mdl 512]} 25. Kf2 Ng4+ 26. Kf3 Qxb5 27. Rxb5 Rxh1 $19) (24. e7 $1 $14) 24... Qd2 $1 $36 {[%emt 0:02:10][%mdl 2048] White is under pressure.} 25. e7+ $1 {[%emt 0:01:10]} (25. Qxb5 Ng4 26. Qb3 Qxe2 27. e7+ Kh8 28. Qf3 Qd2 29. Rd1 Rc1 30. Qxg4 fxg4 31. Rxc1 Qxc1+ 32. Kf2 Qxh1 33. e6 Qxh2 34. a4 Qf4+ 35. Ke1 Qxd4 36. Kf1 Rc8 37. e8=Q+ Rxe8 38. Ke2 Rxe6+ 39. Kf1 Qf4+ 40. Kg1 Re1#) 25... Nc4 {[%emt 0:02:11]} ({Black should play} 25... Kh8 $1 $15 26. Kf2 (26. Qxb5 Rxe7 27. h3 Nc2 $17) 26... Ng4+ 27. Kf1 Ne3+ 28. Kf2 Ng4+ 29. Kf1 Re8) 26. Qf3 {[%emt 0:00:25]} (26. Qxb5 Kf7 27. e8=B+ (27. Qd5+ Kxe7 28. h4 Qxe2 $11) 27... Rxe8 28. Qd5+ Re6 $11) (26. Kf2 $1 $14) 26... Rxe7 {[%emt 0:01:00]} 27. h4 $2 {[%emt 0:00:42]} (27. Kf2 $1 $15 Rxa3 28. Rb3) 27... Rxa3 $19 {[%emt 0:00:48]} 28. Qf2 {[%emt 0:00:16]} Ra2 {[%emt 0:01:29]} 29. Re1 {[%emt 0:00:35]} Ne3 {[%emt 0:01:13]} 30. Rh3 {[%emt 0:00:05] [#]} Nc2 {[%emt 0:00:36]} (30... f4 31. Rf3 $11) (30... Ng4 $1 $19 {[%cal Rg4f2]} 31. Qf1 b4) 31. Rc1 {[%emt 0:00:39][%cal Of2f5]} Ra1 $2 {[%emt 0:01:16]} (31... Nxd4 $2 32. Qxd4 Qxd4+ 33. Nxd4 Rxe5 34. Rc8+ Kf7 35. Rc7+ Re7 36. Rxe7+ (36. Nxb5 Rxc7 37. Nxc7 Rc2 $16) 36... Kxe7 37. Rb3 $18 (37. Nxf5+ Kd7 $16) (37. Nxb5 Ra4 $16)) (31... h6 $15 {keeps the upper hand.} 32. Rf1 Ra4) 32. Rxa1 $18 {[%emt 0:00:12]} Nxa1 {[%emt 0:00:01]} 33. Rc3 {[%emt 0:00:35] Threatens to win with Rc8+.} Re8 {[%emt 0:00:43] Against Rc8} 34. Rc7 {[%emt 0:01:05] Strongly threatening Kh2.} b4 {[%emt 0:00:46]} 35. Qxf5 $2 {[%emt 0:00:29]} Rf8 {[%emt 0:00:19][%mdl 8192]} (35... Qe1+ $16 {is tougher.} 36. Qf1 Qxf1+ 37. Kxf1 b6) 36. Rc8 $2 {[%emt 0:00:19]} (36. Qg4 $18 {[%csl Gc7][%cal Rg4g7]} Qh6 37. Rc8) 36... Qe1+ $11 {[%emt 0:00:34] The position is equal.} 37. Kh2 {[%emt 0:00:28][%csl Gf5][%cal Rc8f8]} Qxh4+ {[%emt 0:00:27]} 38. Kg1 {[%emt 0:00:01][%csl Gf5][%cal Rc8f8]} Qe1+ {[%emt 0:00:11]} 39. Kh2 {[%emt 0:00:04][%csl Gf5][%cal Rc8f8]} Qh4+ {[%emt 0:00:03]} 40. Kg1 {[%emt 0:00:05][%csl Gf5][%cal Rc8f8] Really sharp!} Qe1+ {[%emt 0:00:49]} 41. Kh2 {[%emt 0:16:41][%csl Gf5][%cal Rc8f8]} Qh4+ {[%emt 0:00:00]} 42. Kg1 {[%emt 0:00:00] Weighted Error Value: White=0.70/Black=0.62} 1/2-1/2

[Event "GER-ch Youth-U16 2022"]
[Site "Willingen"]
[Date "2022.06.10"]
[Round "8.10"]
[White "Rempe, Jonas"]
[Black "Bock, Marlon"]
[Result "1/2-1/2"]
[ECO "B34"]
[WhiteElo "1856"]
[BlackElo "1816"]
[Annotator "NA RC COMBH"]
[PlyCount "131"]
[EventDate "2022.06.05"]
[EventType "swiss"]
[EventRounds "9"]
[EventCountry "GER"]
[SourceTitle "playchess.com"]
[Source "ChessBase"]
[SourceQuality "1"]
[TimeControl "40/4500+30:900+30"]

1. e4 {[%emt 0:00:00]} c5 {[%emt 0:00:00]} 2. Nf3 {[%emt 0:00:00]} Nc6 {[%emt 0:00:00]} 3. d4 {[%emt 0:00:00]} cxd4 {[%emt 0:00:00]} 4. Nxd4 {[%emt 0:00:00]} Nf6 {[%emt 0:00:00]} 5. Nc3 {[%emt 0:00:00]} e5 {[%emt 0:00:00]} 6. Ndb5 {[%emt 0:00:00]} d6 {[%emt 0:00:00]} 7. Nd5 {[%emt 0:00:00]} Nxd5 {[%emt 0:00:00]} 8. exd5 {[%emt 0:00:00]} Ne7 {[%emt 0:00:00]} 9. c4 {[%emt 0:00:00]} Ng6 {[%emt 0:00:00]} 10. h4 {[%emt 0:00:00]} Be7 {[%emt 0:00:00]} 11. h5 {[%emt 0:00:00]} Nh4 {[%emt 0:00:00]} 12. c5 {[%emt 0:16:14]} Nf5 {[%emt 0:00:00]} (12... dxc5 $2 13. d6 O-O 14. dxe7 Qxe7 15. h6 $18) 13. g4 {[%emt 0:23:02]} a6 {[%emt 0:05:45]} 14. gxf5 {[%emt 0:01:29]} axb5 {[%emt 0:00:34]} 15. Bxb5+ {[%emt 0:00:01]} Kf8 {[%emt 0:06:42]} (15... Bd7 $11 16. cxd6 Qa5+ 17. Qd2 Bxd6 18. Qxa5 Rxa5 19. Bxd7+ Kxd7) 16. h6 {[%emt 0:09:19]} Bf6 {[%emt 0:09:09]} (16... g5 $14 17. fxg6 hxg6) 17. hxg7+ {[%emt 0:04:58]} Bxg7 {[%emt 0:01:09]} 18. Bd3 {[%emt 0:00:02]} dxc5 {[%emt 0:05:00]} 19. Be4 {[%emt 0:00:44]} Qf6 {[%emt 0:06:54]} 20. Rh5 {[%emt 0:01:28]} Ra6 {[%emt 0:04:27]} (20... Bd7 $16 {is a better defense.}) 21. Be3 {[%emt 0:01:19]} Qb6 {[%emt 0:04:45]} 22. Qc2 {[%emt 0:11:16]} Qb4+ {[%emt 0:06:12]} 23. Bd2 {[%emt 0:05:02]} Qd4 {[%emt 0:02:37]} 24. Bc3 {[%emt 0:00:39]} Qa4 {[%emt 0:01:27]} 25. b3 {[%emt 0:01:15]} Qd7 {[%emt 0:00:54]} (25... Qe8 $142 26. O-O-O b6) 26. O-O-O {[%emt 0:00:29]} Qd6 {[%emt 0:02:30]} (26... f6 $142 27. Bd2 b6) 27. Bd2 {[%emt 0:01:19]} Bd7 {[%emt 0:01:52]} 28. Be3 {[%emt 0:04:24]} b6 {[%emt 0:03:20]} 29. Rdh1 {[%emt 0:01:41]} h6 {[%emt 0:00:46]} 30. Kb1 {[%emt 0:01:25]} Be8 {[%emt 0:06:40]} 31. Qc1 {[%emt 0:00:34]} f6 {[%emt 0:00:56]} 32. R5h4 {[%emt 0:02:00]} h5 {[%emt 0:00:25]} 33. Bf3 {[%emt 0:01:27]} Bf7 {[%emt 0:02:05]} 34. Qc4 {[%emt 0:01:05]} Ra7 {[%emt 0:01:27]} 35. b4 {[%emt 0:00:46]} cxb4 {[%emt 0:00:54]} 36. Qxb4 {[%emt 0:00:01]} Ke7 {[%emt 0:01:05]} 37. Rc1 {[%emt 0:00:36]} Rha8 {[%emt 0:03:20]} 38. Qxd6+ {[%emt 0:01:18]} Kxd6 {[%emt 0:00:05]} 39. Rc6+ {[%emt 0:00:05]} Kd7 {[%emt 0:02:19]} (39... Ke7 $2 40. d6+ Ke8 41. Rxb6 $18) 40. Rhc4 {[%emt 0:00:49]} Rxa2 {[%emt 0:07:03]} 41. Rc7+ {[%emt 0:00:00]} Ke8 {[%emt 0:00:00]} 42. Bxb6 $2 {[%emt 0:00:00]} (42. Rc8+ Rxc8 43. Rxc8+ Kd7 44. Rb8 Bxd5 45. Bxd5) 42... R2a3 {[%emt 0:00:00]} 43. Rc8+ {[%emt 0:00:00]} ({Worse is} 43. Bxh5 Bxh5 44. Rxg7 Bf7 $11) 43... Rxc8 {[%emt 0:00:00]} 44. Rxc8+ {[%emt 0:00:00]} Ke7 {[%emt 0:00:00]} 45. Bc5+ {[%emt 0:00:00]} Kd7 {[%emt 0:00:00]} 46. Bxa3 {[%emt 0:00:26]} Kxc8 {[%emt 0:00:00]} 47. Kc2 {[%emt 0:00:33]} Kd7 {[%emt 0:00:00]} 48. Kc3 {[%emt 0:00:23]} (48. Kd3 $11 {is superior.}) 48... h4 {[%emt 0:00:00]} 49. Kd3 {[%emt 0:10:50]} h3 {[%emt 0:00:28]} 50. Ke2 $1 {[%emt 0:01:20]} h2 {[%emt 0:02:08]} 51. Kf1 $11 {[%emt 0:00:42]} Bh5 {[%emt 0:02:21]} 52. Be4 {[%emt 0:00:44]} Bh6 {[%emt 0:01:08]} 53. Kg2 {[%emt 0:00:09]} Bf4 {[%emt 0:01:15]} 54. Bc5 {[%emt 0:04:18]} Bf7 {[%emt 0:00:25]} 55. Bf3 {[%emt 0:00:10]} Bg8 {[%emt 0:01:05]} 56. Be3 {[%emt 0:01:11]} Kd6 {[%emt 0:02:16]} 57. Bxf4 {[%emt 0:00:35]} exf4 {[%emt 0:00:05]} 58. Kxh2 {[%emt 0:00:06]} Bxd5 {[%emt 0:00:08]} 59. Be2 {[%emt 0:03:14]} Ke5 {[%emt 0:01:41]} 60. Bg4 {[%emt 0:00:31]} Be4 {[%emt 0:00:34]} 61. f3 {[%emt 0:00:11]} Bxf5 {[%emt 0:00:33]} 62. Bh5 {[%emt 0:00:03]} Kd4 {[%emt 0:00:22]} 63. Kg2 {[%emt 0:00:17]} Ke3 {[%emt 0:00:23]} 64. Be8 {[%emt 0:00:16]} Bh3+ {[%emt 0:02:01]} 65. Kxh3 {[%emt 0:00:18]} Kxf3 {[%emt 0:00:04]} 66. Bc6+ {[%emt 0:00:06]} 1/2-1/2

[Event "GER-ch Youth-U16 2022"]
[Site "Willingen"]
[Date "2022.06.10"]
[Round "8.11"]
[White "Lerchl, Clemens"]
[Black "Neuber, Pascal"]
[Result "1-0"]
[ECO "B10"]
[WhiteElo "1843"]
[BlackElo "1802"]
[Annotator "NA RC COMBH"]
[PlyCount "65"]
[EventDate "2022.06.05"]
[EventType "swiss"]
[EventRounds "9"]
[EventCountry "GER"]
[SourceTitle "playchess.com"]
[Source "ChessBase"]
[SourceQuality "1"]
[TimeControl "40/4500+30:900+30"]

1. e4 {[%emt 0:00:00]} c6 {[%emt 0:00:00]} 2. Nc3 {[%emt 0:00:00]} d5 {[%emt 0:00:00]} 3. Nf3 {[%emt 0:00:00]} dxe4 {[%emt 0:00:00]} 4. Nxe4 {[%emt 0:00:00]} Nf6 {[%emt 0:00:00]} 5. Qe2 {[%emt 0:00:00]} Nxe4 {[%emt 0:00:00]} 6. Qxe4 {[%emt 0:00:00]} Qa5 {[%emt 0:00:00]} 7. Bd3 {[%emt 0:00:00]} Nd7 {[%emt 0:00:00]} 8. Qf4 {[%emt 0:00:00]} Nf6 {[%emt 0:03:00]} 9. O-O {[%emt 0:02:26]} g6 {[%emt 0:02:01]} 10. Bc4 {[%emt 0:02:18]} Bg7 11. d3 {[%emt 0:08:39]} O-O {[%emt 0:04:51]} 12. Bd2 {[%emt 0:06:56]} (12. Re1 $14 {is superior.}) 12... Qf5 {[%emt 0:01:21]} 13. Rfe1 {[%emt 0:01:31]} Re8 {[%emt 0:01:15]} (13... Qxf4 $11 {was preferrable.} 14. Bxf4 Re8) 14. Ng5 {[%emt 0:02:39]} (14. Qc7 $14 Bf8 15. Bb4) 14... Nd5 {[%emt 0:01:52]} 15. Qh4 {[%emt 0:02:51]} h6 {[%emt 0:06:33]} 16. Ne4 {[%emt 0:00:17]} g5 {[%emt 0:02:21]} 17. Qh5 {[%emt 0:05:14]} Nf4 {[%emt 0:11:19]} (17... Bxb2 $2 {[#]} 18. Nd6 $1 {[%mdl 512]} exd6 19. Rxe8+ Kg7 20. Rae1 $18) 18. Bxf4 {[%emt 0:05:57]} gxf4 {[%emt 0:01:19]} 19. Qf3 {[%emt 0:02:27]} Bd7 {[%emt 0:02:27]} 20. c3 {[%emt 0:14:52]} c5 {[%emt 0:03:36] [#]} 21. a4 {[%emt 0:01:47]} (21. Bd5 $1 $14) 21... Bc6 {[%emt 0:04:18]} 22. Bb5 {[%emt 0:02:33]} Rac8 {[%emt 0:01:55]} 23. Ng3 {[%emt 0:06:53]} Qg5 {[%emt 0:02:28]} 24. Ne4 {[%emt 0:00:49]} Qf5 {[%emt 0:01:35]} 25. Ng3 {[%emt 0:00:24]} (25. h3 $14) 25... Qg5 {[%emt 0:03:34]} 26. Bxc6 {[%emt 0:02:37]} Rxc6 {[%emt 0:00:21]} 27. Nh5 {[%emt 0:00:12]} Be5 $16 {[%emt 0:00:35]} (27... Rd8 $14) 28. Re4 {[%emt 0:00:44]} Rd8 {[%emt 0:01:45]} 29. g3 {[%emt 0:06:06]} Rg6 {[%emt 0:03:17]} 30. Nxf4 {[%emt 0:00:28]} Bxf4 {[%emt 0:00:12]} 31. Rxf4 {[%emt 0:00:03]} Rxd3 {[%emt 0:00:41]} 32. Qxd3 {[%emt 0:00:04]} Qxf4 {[%emt 0:00:29]} 33. Qxg6+ {[%emt 0:00:03]} 1-0

[Event "GER-ch Youth-U16 2022"]
[Site "Willingen"]
[Date "2022.06.10"]
[Round "8.12"]
[White "Ehrig, Leon Chris"]
[Black "Bungarten, Jona"]
[Result "1-0"]
[ECO "C58"]
[WhiteElo "1890"]
[BlackElo "1843"]
[Annotator "NA RC COMBH"]
[PlyCount "43"]
[EventDate "2022.06.05"]
[EventType "swiss"]
[EventRounds "9"]
[EventCountry "GER"]
[SourceTitle "playchess.com"]
[Source "ChessBase"]
[SourceQuality "1"]
[TimeControl "40/4500+30:900+30"]

{[%evp 18,37,69,32767,64,67,151,-3,-1,32767,63,72,65,65,122,104,32767,32767,297,214,32767,488]} 1. e4 {[%emt 0:00:00]} e5 {[%emt 0:00:00]} 2. Nf3 {[%emt 0:00:00]} Nc6 {[%emt 0:00:00]} 3. Bc4 {[%emt 0:00:00]} Nf6 {[%emt 0:00:00]} 4. Ng5 {[%emt 0:00:00]} d5 {[%emt 0:00:00]} 5. exd5 {[%emt 0:00:00]} Na5 {[%emt 0:00:00]} 6. Bb5+ {[%emt 0:00:00]} c6 {[%emt 0:00:00]} 7. dxc6 {[%emt 0:00:00]} bxc6 {[%emt 0:00:00]} 8. Bd3 {[%emt 0:00:00] is recently more successful than 8.Be2.} h6 {[%emt 0:00:00]} 9. Ne4 {[%emt 0:01:11]} Nd5 {[%emt 0:00:00]} 10. Nbc3 {[%emt 0:19:41]} Nf4 {[%emt 0:05:08]} 11. Bf1 {[%emt 0:01:23]} f5 {[%emt 0:13:39]} ({Black should play} 11... Ne6 $14) 12. Ng3 $2 {[%emt 0:07:34]} (12. g3 $16) 12... Bd6 {[%emt 0:15:58]} 13. d4 {[%emt 0:09:34] [#]} Qf6 $146 {[%emt 0:05:43]} ({Predecessor:} 13... Qe7 $15 14. d5 (14. dxe5 Bxe5 15. Be2 Nxg2+ 16. Kf1 Nh4 17. f4 Bc7 18. a3 O-O 19. b4 Nb7 {½-½ (45) Cuellar Elisvan,D (2272)-Espinoza Palomino,W (2296) Sao Paulo 2012}) 14... O-O) 14. dxe5 {[%emt 0:10:32]} Qxe5+ {[%emt 0:05:11]} 15. Nge2 {[%emt 0:01:11]} Ne6 {[%emt 0:03:58]} ({Black should try} 15... Qe7) 16. f4 $1 {[%emt 0:10:04]} Qc5 {[%emt 0:00:18]} 17. Qd3 {[%emt 0:02:36]} Ke7 $2 {[%emt 0:09:31]} (17... Bc7 $1 $14) 18. Be3 {[%emt 0:04:15]} Qc4 {[%emt 0:03:14]} 19. Qxf5 $18 {[%emt 0:01:41]} Qb4 {[%emt 0:02:44]} 20. a3 {[%emt 0:01:17]} Qxb2 {[%emt 0:00:49]} 21. Ra2 {[%emt 0:00:12]} Nc5 {[%emt 0:01:06]} 22. Qg6 {[%emt 0:01:28]} 1-0

[Event "GER-ch Youth-U16 2022"]
[Site "Willingen"]
[Date "2022.06.10"]
[Round "8.13"]
[White "Hecht, Jonas Christian"]
[Black "Gluma, Christian"]
[Result "1/2-1/2"]
[ECO "B12"]
[WhiteElo "1884"]
[BlackElo "2012"]
[Annotator "TA"]
[PlyCount "41"]
[EventDate "2022.06.05"]
[EventType "swiss"]
[EventRounds "9"]
[EventCountry "GER"]
[SourceTitle "playchess.com"]
[Source "ChessBase"]
[SourceQuality "1"]
[TimeControl "40/4500+30:900+30"]

{[%evp 9,41,25,27,16,44,30,92,35,50,46,75,74,79,44,44,34,35,22,32,28,30,0,0,0,0,0,7,0,32,0,35,0,43,35]} 1. e4 {[%emt 0:00:00]} c6 {[%emt 0:00:00]} 2. d4 {[%emt 0:00:00]} d5 {[%emt 0:00:00]} 3. e5 {[%emt 0:00:00]} g6 {[%emt 0:00:00]} 4. h4 {[%emt 0:00:00]} h5 {[%emt 0:00:00]} 5. Bd3 {[%emt 0:00:00]} Nh6 {[%emt 0:00:00][%cal Oc6c5]} 6. Ne2 {[%emt 0:04:00] [#] B12: Caro-Kann: Advance Variation.} Qb6 $146 {[%emt 0:00:00]} ({Predecessor:} 6... c5 7. dxc5 Nc6 8. Nbc3 Ng4 9. Bb5 e6 10. Bg5 Qc7 11. Bxc6+ bxc6 12. Qd4 Bg7 {½-½ (50) Bachmann,A (2599)-Larino Nieto,D (2461) chess24.com INT 2020}) 7. c3 {[%emt 0:11:59]} Na6 {[%emt 0:04:47]} (7... Bf5 $11) 8. Nf4 {[%emt 0:07:51]} (8. a4 $16) 8... Nc7 $14 {[%emt 0:04:33]} 9. a4 {[%emt 0:09:12][%cal Ba2a4,Ba4a5][%mdl 32]} Ne6 {[%emt 0:05:04]} 10. a5 {[%emt 0:05:27]} Qc7 {[%emt 0:01:15]} 11. Qa4 {[%emt 0:04:55] aiming for Nxd5. White is more active.} Nxf4 {[%emt 0:12:09]} 12. Bxf4 {[%emt 0:00:08]} Bf5 {[%emt 0:02:01]} 13. Bxf5 {[%emt 0:08:49]} Nxf5 {[%emt 0:00:37]} 14. Nd2 {[%emt 0:01:49]} e6 {[%emt 0:04:53]} 15. Nf3 {[%emt 0:02:23]} Be7 {[%emt 0:03:05]} 16. g3 {[%emt 0:01:47]} O-O {[%emt 0:06:02]} 17. b4 {[%emt 0:01:09]} Rfc8 {[%emt 0:04:14]} 18. O-O {[%emt 0:00:11]} Qd8 {[%emt 0:01:11]} 19. Ra2 {[%emt 0:04:26]} Kg7 {[%emt 0:07:31]} 20. Re1 {[%emt 0:01:20]} Qc7 {[%emt 0:03:03]} 21. Bg5 {[%emt 0:01:37] Weighted Error Value: White=0.17 (very precise) /Black=0.15 (very precise)} 1/2-1/2

[Event "GER-ch Youth-U16 2022"]
[Site "Willingen"]
[Date "2022.06.10"]
[Round "8.14"]
[White "Mimkes, Antal"]
[Black "Spriestersbach, Kai"]
[Result "1-0"]
[ECO "B23"]
[WhiteElo "1696"]
[BlackElo "1948"]
[Annotator "TA"]
[PlyCount "51"]
[EventDate "2022.06.05"]
[EventType "swiss"]
[EventRounds "9"]
[EventCountry "GER"]
[SourceTitle "playchess.com"]
[Source "ChessBase"]
[SourceQuality "1"]
[TimeControl "40/4500+30:900+30"]

{[%evp 17,51,-11,-16,-17,-20,-68,-59,-55,-25,-36,5,-26,-35,-24,-35,-33,-12,-49,-56,-32,-30,-63,-47,-45,-39,-40,-3,-8,54,-152,260,264,276,270,277,254]} 1. e4 {[%emt 0:00:00]} c5 {[%emt 0:00:00]} 2. Nc3 {[%emt 0:00:00]} Nc6 {[%emt 0:00:00]} 3. f4 {[%emt 0:00:00]} g6 {[%emt 0:00:00]} 4. Nf3 {[%emt 0:00:00]} Bg7 {[%emt 0:00:00]} 5. g3 {[%emt 0:00:00]} d6 {[%emt 0:00:00]} 6. Bg2 {[%emt 0:00:00]} e6 {[%emt 0:00:00]} 7. O-O {[%emt 0:00:00]} Nge7 {[%emt 0:00:00]} 8. d3 {[%emt 0:00:00]} O-O {[%emt 0:00:00]} 9. Rb1 {[%emt 0:00:00]} Rb8 {[%emt 0:00:00]} 10. a4 {[%emt 0:00:00] B25: Closed Sicilian: 3 g3, lines without early Be3.} b6 {[%emt 0:08:16] [#]} 11. g4 $146 {[%emt 0:00:00]} (11. Be3 $11 {should be considered.}) ({Predecessor:} 11. Ne2 Bb7 12. b3 d5 13. e5 d4 14. Ng5 Nb4 15. Ne4 Bxe4 16. Bxe4 Nbd5 17. g4 f6 18. exf6 Nxf6 {½-½ (43) Pardo Simon,D (2163)-Anton Guijarro,D (1988) Aviles 2008}) 11... f5 $15 {[%emt 0:00:12]} 12. exf5 {[%emt 0:00:00] Black is slightly better.} gxf5 {[%emt 0:00:17]} 13. g5 $1 {[%emt 0:00:00]} a6 {[%emt 0:04:44]} 14. h4 {[%emt 0:00:00]} Qe8 {[%emt 0:02:59]} 15. Ne2 {[%emt 0:02:17][%cal Bc3e2,Be2g3,Bg3h5,Bh5g7,Bg7e6][%mdl 32]} e5 {[%emt 0:13:40]} 16. Ng3 {[%emt 0:03:24] Prevents e4.} Be6 {[%emt 0:03:10]} 17. h5 {[%emt 0:05:23]} Nd5 $1 {[%emt 0:03:48]} 18. h6 {[%emt 0:07:56]} Bh8 {[%emt 0:00:07]} 19. Nh4 {[%emt 0:01:39]} Nxf4 {[%emt 0:04:09]} 20. Bxf4 {[%emt 0:02:02]} exf4 {[%emt 0:00:06]} 21. Nh5 $1 {[%emt 0:00:41]} f3 {[%emt 0:04:58]} 22. Bxf3 {[%emt 0:03:48][%cal Oh5g7]} Nd4 {[%emt 0:01:46]} (22... Ne5 $11) 23. Bg2 $2 {[%emt 0:09:21] [#]} (23. c3 $1 $14 {was the only good move.}) 23... Nxc2 $2 {[%emt 0:08:15]} 24. Ng7 $1 $18 {[%emt 0:07:15] Pair of Knights! White has a decisive advantage.} Qxa4 {[%emt 0:01:57]} 25. Nxe6 {[%emt 0:01:49]} Qxh4 {[%emt 0:00:29]} 26. Qxc2 {[%emt 0:01:22] Weighted Error Value: White=0.31/Black=0.51} 1-0